Cogmind - Beta 14 --- EXPLORER MODE // 2024.11.18 @ 05:02:54 Player: Nah Bohdi Result: Destroyed by 8P-JI9(R) with Subdweller Laser Performance ------------- Evolutions (0) 0 Regions Visited (2) 400 Robots Destroyed (18) 90 Value Destroyed (666) 666 Prototype IDs (2) 40 Alien Tech Used (0) 0 Bonus (0) 0 TOTAL SCORE: 1196 Bonus ------- None Cogmind --------- Core Integrity 0/250 Matter 166/500 Energy 100/100 System Corruption 0% Temperature Cool (6) Movement Walking (190) Ox1 Location -10/Subcaves Parts ------- > --- POWER (1) -------- Subdweller Power Source > --- PROPULSION (2) --- Aluminum Leg Aluminum Leg > --- UTILITY (3) ------ Medium Storage Unit High-capacity Matter Pod Core Shielding > --- WEAPON (2) ------- Barrage Gun Barrage Gun > --- INVENTORY (10) --- Aluminum Leg Subdweller Optics Makeshift Targeting Computer Power Shielding Propulsion Shielding Makeshift Light Armor Plating Subdweller Beam Cannon Subdweller Beam Cannon Heavy Battle Rifle Subdweller Shrapnel Launcher Peak State ------------ > --- POWER ------------ Subdweller Power Source > --- PROPULSION ------- Aluminum Leg Aluminum Leg > --- UTILITY ---------- Medium Storage Unit Core Shielding Makeshift Light Armor Plating > --- WEAPON ----------- Barrage Gun Heavy Battle Rifle > --- INVENTORY -------- Ion Engine High-capacity Matter Pod Subdweller Optics Makeshift Targeting Computer Propulsion Shielding Subdweller Beam Cannon Subdweller Beam Cannon Barrage Gun Subdweller Shrapnel Launcher [Rating: 18] Favorites ----------- Power Subdweller Power Source Engine Subdweller Power Source Propulsion Aluminum Leg Treads Light Treads Leg Aluminum Leg Utility Medium Storage Unit Storage Medium Storage Unit Protection Core Shielding Weapon Barrage Gun Energy Gun EM Pulse Gun Ballistic Gun Barrage Gun Launcher Subdweller Shrapnel Launcher Build | -11 -10 -10 ------- Run | Yrd Mat Sub Slots Evolved 1 | . 1 . Power . | . . . Propulsion . | . . . Utility 1 | . 1 . Weapon . | . . . Parts Attached 35 | 9 1 25 Power 6 | 1 . 5 Engine 6 | 1 . 5 Core . | . . . Reactor . | . . . Propulsion 8 | 4 . 4 Treads 2 | 2 . . Leg 6 | 2 . 4 Wheel . | . . . Hover . | . . . Flight . | . . . Utility 7 | 2 1 4 Device . | . . . Storage 3 | 1 1 1 Processor . | . . . Hackware . | . . . Protection 4 | 1 . 3 Artifact . | . . . Weapon 14 | 2 . 12 Energy Gun 1 | 1 . . Energy Cannon . | . . . Ballistic Gun 9 | 1 . 8 Ballistic Cannon . | . . . Launcher 4 | . . 4 Special Weapon . | . . . Impact Weapon . | . . . Slashing Weapon . | . . . Piercing Weapon . | . . . Special Melee Weapon . | . . . Unidentified Prototypes . | . . . Parts Lost 5 | . . 5 Power 2 | . . 2 Propulsion 2 | . . 2 Utility . | . . . Weapon 1 | . . 1 Highest Loss Streak 2 | . . 2 To Critical Strikes . | . . . Average Slot Usage (%) 98 | . 97 98 Engine 11 | . 12 11 Treads 3 | . 25 . Leg 20 | . . 23 Storage 14 | . 22 13 Protection 21 | . 12 23 Energy Gun 1 | . 12 . Ballistic Gun 22 | . 12 23 Peak Build Rating 18 | 7 8 18 Average Rating 14 | 4 7 15 On Entrance 5 | . 7 8 Naked Turns . | . . . Heaviest Build 31 | 18 22 31 Greatest Support 40 | 40 40 40 Greatest Overweight (x) 10 | 3 . 10 Average Overweight (x) . | . . 1 Largest Inventory Capacity 10 | 10 10 10 Average Capacity 9 | 9 10 10 Most Carried 10 | 6 7 10 Average Carried 8 | 2 4 9 Final Capacity 10 | 10 10 10 Final Carried 10 | 3 7 10 Class Distribution -------------------- 100% | Hacker-Mutant Dominant Class ---------------- Hacker-Mutant | -10/Materials Hacker-Mutant | -10/Subcaves Resources | -11 -10 -10 ----------- Run | Yrd Mat Sub Matter Collected 1304 | 248 287 769 Remotely . | . . . Salvage Created 631 | . 225 406 Parts 38 | . 15 23 Haulers Intercepted . | . . . Recyclers Shooed 1 | . 1 . Parts Field Recycled . | . . . Retrieved Matter . | . . . Parts Self-Destructed . | . . . Prevented . | . . . Kills | -11 -10 -10 ------- Run | Yrd Mat Sub Combat Hostiles Destroyed 17 | . 5 12 Guns 11 | . 5 6 AOE 6 | . . 6 Classes Destroyed 5 | . 2 3 Watcher 1 | . 1 . Grunt 5 | . 5 . Artisan 1 | . . 1 Cobbler 2 | . . 2 Subdweller 12 | . . 12 Best Kill Streak 3 | . 3 3 Combat Bots Only 3 | . 3 3 Max Kills in Single Turn 1 | . 1 1 Gunslinging . | . . . Exploded 1 | . . 1 Melee . | . . . Uniques/NPCs Destroyed . | . . . Combat | -11 -10 -10 -------- Run | Yrd Mat Sub Hostile Shots Fired 111 | . 19 92 Missed 30 | . 3 27 Damage Taken 1264 | . 109 1155 Core 251 | . . 251 Absorbed by Shields . | . . . Redirected to Shielding 81 | . . 81 Ignored by Resistances 701 | . 72 629 Core Remaining (%) 100 | 100 . . Volleys Fired 132 | . 16 116 Largest 2 | . 2 2 Hottest 63 | . 60 63 Shots Fired 242 | . 32 210 Gun 222 | . 32 190 Cannon . | . . . Launcher 20 | . . 20 Special . | . . . Kinetic 203 | . 16 187 Thermal . | . . . Explosive 14 | . . 14 Electromagnetic 25 | . 16 9 Robot Hit Streak 25 | . 14 25 Robot Miss Streak 2 | . 1 2 Penetration Max . | . . . Secondary Targets . | . . . Shots Hit Robots 137 | . 27 110 Core Hits 44 | . 10 34 Critical Kills . | . . . Critical Parts Destroyed . | . . . Critical Strikes . | . . . Melee Attacks . | . . . Impact . | . . . Slashing . | . . . Piercing . | . . . Sneak Attacks . | . . . Combat Hostiles . | . . . Follow-up Attacks . | . . . Damage Inflicted 3055 | . 428 2627 Guns 2058 | . 391 1667 Cannons . | . . . Explosions 997 | . 37 960 Melee . | . . . Ramming . | . . . Kinetic 2089 | . 171 1918 Thermal 37 | . 37 . Explosive 623 | . . 623 Electromagnetic 306 | . 220 86 Impact . | . . . Slashing . | . . . Piercing . | . . . Highest Corruption . | . . . Average Corruption . | . . . Corruption Purged . | . . . Corruption Blocked . | . . . Overload Shots . | . . . Overflow Damage 6 | . . 6 Projectiles . | . . . Explosions 6 | . . 6 Melee . | . . . Knockbacks . | . . . Impact . | . . . Kinetic . | . . . Secondary . | . . . Self-Inflicted Damage 169 | . . 169 Shots 11 | . . 11 Rammed . | . . . Targets Rammed . | . . . Kicked . | . . . Crushed . | . . . Highest Temperature 66 | . 66 1 Average Temperature 26 | . 28 1 Received Heat Transfer 417 | . 96 321 Siege Activations . | . . . Robots Corrupted . | . . . Combat Hostiles . | . . . Parts Fried . | . . . Impact Corruptions . | . . . Robots Melted . | . . . Combat Hostiles . | . . . Parts Melted 3 | . . 3 Heat Transferred 50 | . 50 . Parts Sabotaged . | . . . Parts Stolen . | . . . Parts Stripped . | . . . Power Chain Reactions 1 | . 1 . Alert | -11 -10 -10 ------- Run | Yrd Mat Sub Peak Influence 166 | . 166 . Initial . | . . . Average 69 | . 83 . Maximum Alert Level . | . . . Low Security (%) 100 | 100 100 . Level 1 . | . . . Level 2 . | . . . Level 3 . | . . . Level 4 . | . . . Level 5 . | . . . High Security . | . . . Max Security . | . . . Squads Dispatched 1 | . 1 . Investigation 1 | . 1 . Extermination . | . . . Reinforcement . | . . . Assault . | . . . Garrison . | . . . Intercept . | . . . Searches Triggered . | . . . Construction Impeded . | . . . Haulers Reinforced . | . . . Active Scanning Responses . | . . . Cargo Convoy Interrupts . | . . . Stealth | -11 -10 -10 --------- Run | Yrd Mat Sub Distress Signals 1 | . 1 . Communications Jammed . | . . . Distress Signals . | . . . Times Spotted 24 | . 9 15 Peak Tracking Total 4 | . 4 2 Tactical Retreats 2 | . 1 1 Traps | -11 -10 -10 ------- Run | Yrd Mat Sub Traps Triggered 2 | . . 2 Indirectly . | . . . Trap Hack Attempts . | . . . Triggered . | . . . Disarmed . | . . . Reprogrammed . | . . . Reused . | . . . Traps Extracted . | . . . Installed . | . . . Triggered . | . . . Machines | -11 -10 -10 ---------- Run | Yrd Mat Sub Machines Disabled . | . . . Max in Single Turn . | . . . Machines Repaired . | . . . Machines Dismantled . | . . . Machines Sabotaged . | . . . Overloaded Fab Kills . | . . . Hacking | -11 -10 -10 --------- Run | Yrd Mat Sub Machines Accessed 2 | . 1 1 Terminals 1 | . 1 . Fabricators . | . . . Repair Stations . | . . . Recycling Units . | . . . Scanalyzers . | . . . Garrison Access . | . . . Total Hacks 6 | . 3 3 Successful 5 | . 2 3 Failed 1 | . 1 . Catastrophic . | . . . Database Lockouts . | . . . Manual . | . . . Terminals 3 | . 3 . Fabricators . | . . . Repair Stations . | . . . Recycling Units . | . . . Scanalyzers . | . . . Garrison Access . | . . . Terminal Hacks 5 | . 2 3 Record 3 | . . 3 Prototype ID Bank 1 | . 1 . Locate Traps 1 | . 1 . Fabricator Hacks . | . . . Repair Station Hacks . | . . . Recycling Unit Hacks . | . . . Scanalyzer . | . . . Garrison Access Hacks . | . . . Unauthorized Hacks . | . . . Terminals . | . . . Fabricators . | . . . Repair Stations . | . . . Recycling Units . | . . . Scanalyzers . | . . . Garrison Access . | . . . Data Cores Recovered . | . . . Used . | . . . Hacking Detections 1 | . 1 . Full Trace Events 1 | . 1 . Feedback Events . | . . . Feedback Blocked . | . . . Robot Schematics Acquired . | . . . Robots Built . | . . . Authchips . | . . . Time . | . . . Total Robot Build Rating . | . . . Part Schematics Acquired . | . . . Parts Built . | . . . Authchips . | . . . Time . | . . . Total Part Build Rating . | . . . Parts Repaired . | . . . Time . | . . . Parts Recycled . | . . . Recycled Matter . | . . . Retrieved Matter . | . . . Retrieved Components . | . . . Parts Scanalyzed . | . . . Part Schematics Acquired . | . . . Parts Damaged . | . . . Bothacking | -11 -10 -10 ------------ Run | Yrd Mat Sub Used RIF Installer . | . . . Robots Hacked . | . . . Non-combat . | . . . Combat . | . . . Robot Hacks Applied . | . . . Relay Couplers Released . | . . . Fabnet Peak Effective % . | . . . Robots Rewired . | . . . Allies Hacked . | . . . Hacks Repelled . | . . . Allies | -11 -10 -10 -------- Run | Yrd Mat Sub Total Allies . | . . . Largest Group . | . . . Highest-Rated Group . | . . . Highest-Rated Ally . | . . . Total Orders . | . . . Ally Attacks . | . . . Total Damage . | . . . Kills . | . . . Allies Corrupted . | . . . Allies Melted . | . . . Intel | -11 -10 -10 ------- Run | Yrd Mat Sub Robot Analysis Total . | . . . Derelict Logs Recovered 1 | . . 1 Drone Launches . | . . . Drone Recoveries . | . . . Exploration | -11 -10 -10 ------------- Run | Yrd Mat Sub Turns Passed 4279 | 91 451 3737 Spaces Moved 2055 | 49 246 1760 Core 24 | 4 . 20 Treads 320 | 37 246 37 Legs 1711 | 8 . 1703 Wheels . | . . . Hover . | . . . Flight . | . . . Fastest Speed 50 | 50 160 120 Average Speed 184 | 147 160 188 Slowest Speed 550 | 200 160 550 Overloaded Moves . | . . . Propulsion Burnouts . | . . . Robots Hopped . | . . . Cave-ins Triggered . | . . . Exploration Rate (%) 36 | 4 38 68 Regions Visited 2 Branch Regions 1 Pre-discovered Areas 1 | . . 1 Known Exits Taken 2 | 1 1 . Unknown Exits Taken . | . . . Scrap Searched 8 | . . 8 Spaces Dug 16 | . . 16 Terrain Destroyed 82 | . 3 79 Melee . | . . . Projectile 1 | . . 1 AOE 81 | . 3 78 Terrain Rammed . | . . . Walls Destroyed . | . . . Machines Disabled . | . . . Actions | -11 -10 -10 --------- Run | Yrd Mat Sub Total 2312 | 67 272 1973 Wait 32 | . 5 27 Move 2053 | 48 245 1760 Hop . | . . . Pick Up 40 | 10 5 25 Fast Attach 2 | . . 2 Attach 16 | 7 1 8 Detach 1 | . . 1 Swap 17 | 2 . 15 Drop 19 | . . 19 Fire 132 | . 16 116 Melee . | . . . Ram . | . . . Kick . | . . . Crush . | . . . Escape Stasis . | . . . Rewire . | . . . Trap . | . . . Miscellaneous . | . . . Route ------- -11/Scrapyard -10/Materials -10/Subcaves History --------- Turn | Location | Event 18 | -11/Scrapyard | Identified exit to Materials 18 | -11/Scrapyard | Discovered exit to Materials (range 15) 92 | -11/Scrapyard | Entered Materials 92 | -10/Materials | Evolved 1 slot: Utility x1 318 | -10/Materials | Build established: Hacker-Mutant 534 | -10/Materials | Identified exit to Subcaves 534 | -10/Materials | Discovered exit to Subcaves (range 8) 543 | -10/Materials | Entered Subcaves 729 | -10/Subcaves | Learned location of Zion (-7) 771 | -10/Subcaves | Core integrity fell below 50% 811 | -10/Subcaves | Shifting Twisted Machinery released Hvy. Battle Rifle 1154 | -10/Subcaves | Visited Clippyterm 1160 | -10/Subcaves | Learned Factory stockpile data 1874 | -10/Subcaves | A swath of the cavern ceiling suddenly collapsed 2384 | -10/Subcaves | Shifting Twisted Machinery released Sub. Monowheel 2824 | -10/Subcaves | Core integrity fell below 20% 4280 | -10/Subcaves | Destroyed by 8P-JI9(R) with Subdweller Laser Last Messages --------------- Acquired Power Shielding. Subatomizers dissect the Aluminum Leg. Acquired 15 matter. Subatomizers dissect the Aluminum Leg. Acquired Aluminum Leg. Acquired 52 matter. Dropped Sub. Shrapnel Launcher. Acquired Sub. Shrapnel Launcher. Destroyed Multitool. 2L-HFW(u) cries out in pain. 2L-HFW(u) destroyed. Acquired 16 matter. Acquired 15 matter. Acquired 29 matter. Acquired 23 matter. Acquired 32 matter. Acquired 47 matter. ZV-CGR(z): "She is not going to be happy we haven't found any suitable candidates yet." [Achievement: First Step to Greatness] Map ----- +----------------------------------------------------+ | #????????## #??????????????????????????? | | #??????### #??????????????????????????? | | #####??????# ##?????????????????????????? | | #??????????# #?????????????????????????? | | ???????????# ##" #?????????????????????????? | | ???????????# ######?????????????????????????? | | ???????????#"###" #####?##???????????????????????? | | ???????????##?##" "##"##"##??????????????????????? | | ???????????# ## """"""""#??????????????????????? | | ???????????#""" "#?????????????? ????????? | | ???????????#""" ##""#????????????? ????????? | | ???????????##"" ######???????????? ?????????? | | ????????????##" ##???????????????? ?????????? | | ?????????????#" ##????###???###??? ??????????? | | ????????????## #????##"##??# ### ???????????? | | ????????????#" ##????# #??# ?????????????? | | ????????????##" #????## #### ##??????????????? | | ?###?????????##" ###??# #??????????????? | | ## ##???????###= #??# ##?????????????? | | # ######### ##???# #?????????????? | | # ## """"##?### # ### #????????????? | | ###"" ######?? #???????????? | | ##???????? ##???????????? | | ## #### ####### ##???????????? | | ########??# R R #???????????? | | ##???????## @ #??????????? | | #??????## # # # #??????????? | | #??????# ########?#??? ??????????? | | ##?????# ## ##???###?????????? #?????????? | | ###??????## ## ##???# ##????????? #?????????? | | ??????????## ## #?### ####??????? #?????????? | | ???????????## ### # "" ##?????? #?????????? | | ????????????# "" "#???????#?????????? | | ????????????# "####?????????????????? | | ????????????## ### ## ###????????????????????? | | ?????????????####??#### #??????????????????????? | | ??????????????????????# #??###?????????????????? | | ?????????????????????## ###"""?????????????????? | | #####???????????????## """"""?????????????????? | | """"###?????????????# """"""?????????????????? | | ""##?????????#### ""##"?????????????????? | | & "#????????## ### "##???????????????????? | | "##???????# ###### "#????????????????????? | | # "" "#???????# ##??## "#????????????????????? | | && " "#????????# #### ##????????????????????? | | " #????????# ##????????????????????? | | ### "#????????## "#????????????????????? | | # ^"##????????## & #????????????????????? | | #????????## ##????????????????????? | | ##"""#####?????# ####?????????????????????? | +----------------------------------------------------+ Best States ------------- Heat Dissipation 25 Energy Generation 15 Energy Capacity 250 Matter Stores 487 Matter Capacity 500 Sight Range 16 Terrain Scan Density 10 Armor Coverage 100 Resistance: KI 35 Resistance: TH 35 Resistance: EX 35 Resistance: EM 35 Resistance: I 35 Resistance: S 35 Resistance: P 35 Core Shielding 20 Propulsion Shielding 33 Evasion (%) 55 Recoil Reduction 2 Offensive Hacking 20 Item Schematics ----------------- None Robot Schematics ------------------ None Fabricated ------------ Nothing Alien Tech Used ----------------- None Achievements -------------- First Step to Greatness Challenges ------------ None Game ------ Seed ForceQuantumArray Manual? 0 Play Time 00:31:01 Cumulative 9.4 hours Start 2024.11.18 @ 04:28:34 End 2024.11.18 @ 05:02:54 Sessions 1 Manual Loads 0 Difficulty Explorer Special Mode None Game No. 6 Rogue 0 Adventurer 0 Explorer 6 Win Type - Total 0 Types 0/0/0/0/0/0/0/0/0 Lore% 4 Gallery% 12 Achievement% 12 Wizard Run 0 Options --------- Layout 1 ASCII 0 Keyboard 0 Movement Numpad Keybinds 0 Fullscreen 1 Font 24/Smallcaps Map View 50x35 Zoom Use 0% Tactical HUD 0 Map Filters NONE Filters NONE Steam 1 RUN: 2135c3a9-efac-45ad-bdfa-d237fd90d2a7